bitfinex/quotes_BTCUSD_20250406
["timestamp","ask_amount","ask_price","bid_price","bid_amount"]
[1743974329622,0.264213,79481.0,79472.0,0.12290297]
[1743974330148,0.012581,79480.0,79472.0,0.12290297]
[1743974330332,0.251645,79477.0,79461.0,0.01487525]
[1743974330558,0.251645,79477.0,79463.0,0.01454085]
[1743974330707,0.012582,79478.0,79465.0,0.251683]
[1743974330915,0.012582,79478.0,79466.0,0.11685548]
[1743974331109,0.264219,79480.0,79466.0,0.12943848]
[1743974331429,0.016581,79481.0,79466.0,0.12943848]
[1743974331430,0.268213,79481.0,79466.0,0.12943848]
[1743974331594,0.26422,79479.0,79466.0,0.11685548]
[1743974332424,0.001,79477.0,79466.0,0.11685548]
[1743974332622,0.001,79477.0,79470.0,0.01454085]
[1743974332822,0.001,79477.0,79471.0,0.12290297]
[1743974333028,0.012581,79479.0,79471.0,0.12290297]
[1743974333238,0.251638,79480.0,79471.0,0.12290297]
[1743974333457,0.002,79479.0,79471.0,0.12290297]
[1743974333650,0.264219,79480.0,79471.0,0.12290297]
[1743974333863,0.25166,79473.0,79471.0,0.12290297]
[1743974334096,0.012583,79467.0,79461.0,0.0003344]
[1743974334309,0.251679,79466.0,79462.0,0.12290297]
[1743974334519,0.251686,79464.0,79461.0,0.0003344]
[1743974334728,0.264276,79462.0,79461.0,0.0003344]
[1743974336370,0.265276,79462.0,79461.0,0.0003344]
[1743974336812,0.264276,79462.0,79461.0,0.0003344]
[1743974337259,0.267276,79462.0,79461.0,0.0003344]
[1743974337464,0.25487882,79462.0,79461.0,0.0003344]
[1743974338323,0.25187882,79462.0,79461.0,0.0003344]
[1743974338569,0.25587882,79462.0,79461.0,0.0003344]
[1743974339188,0.25187882,79462.0,79461.0,0.0003344]
[1743974339391,0.25687882,79462.0,79461.0,0.0003344]
[1743974340417,0.005,79462.0,79461.0,0.13777822]
[1743974341476,0.06,79463.0,79461.0,0.0003344]
[1743974341857,0.016584,79462.0,79461.0,0.0003344]
[1743974342304,0.012584,79462.0,79461.0,0.0003344]
[1743974342884,0.0991228,79462.0,79461.0,0.0003344]
[1743974343096,0.13548697,79462.0,79461.0,4e-07]
[1743974343293,0.13548697,79462.0,79449.0,0.0003342]
[1743974343294,0.264316,79450.0,79449.0,4e-07]
[1743974343557,0.58397897,79450.0,79449.0,4e-07]
[1743974344876,0.58411686,79450.0,79449.0,4e-07]
[1743974345632,0.59871616,79450.0,79449.0,4e-07]
[1743974345816,0.68627688,79450.0,79449.0,4e-07]
[1743974346241,0.68627688,79450.0,79448.0,8e-07]
[1743974346242,0.405186,79449.0,79448.0,8e-07]
[1743974346486,0.52808897,79449.0,79448.0,8e-07]
[1743974346692,0.18308897,79449.0,79448.0,8e-07]
[1743974346884,0.13548897,79449.0,79448.0,0.00017977]
[1743974347086,0.14997435,79449.0,79448.0,0.00017977]
[1743974347288,0.84997435,79449.0,79448.0,0.00017977]
[1743974347665,1.18997435,79449.0,79448.0,7.7e-07]
[1743974347865,1.19497435,79449.0,79448.0,7.7e-07]
[1743974348283,1.19997435,79449.0,79448.0,7.7e-07]
[1743974348680,1.19497435,79449.0,79448.0,7.7e-07]
[1743974348879,0.51997435,79449.0,79448.0,7.7e-07]
[1743974349079,0.52497435,79449.0,79448.0,7.7e-07]
[1743974349427,0.13548897,79449.0,79448.0,7.7e-07]
[1743974349802,0.33716897,79449.0,79448.0,7.7e-07]
[1743974350971,0.14048897,79449.0,79448.0,7.7e-07]
[1743974351153,0.33716897,79449.0,79448.0,7.7e-07]
[1743974351360,0.33216897,79449.0,79448.0,7.7e-07]
[1743974351595,0.45506665,79449.0,79448.0,7.7e-07]
[1743974351812,0.214266,79449.0,79448.0,7.7e-07]
[1743974352021,0.717586,79449.0,79448.0,7.7e-07]
[1743974352256,0.909266,79449.0,79448.0,7.7e-07]
[1743974352450,0.209266,79449.0,79448.0,7.7e-07]
[1743974352632,0.214266,79449.0,79448.0,7.7e-07]
[1743974353040,0.209266,79449.0,79448.0,7.7e-07]
[1743974353180,0.214266,79449.0,79448.0,7.7e-07]
[1743974354442,0.209266,79449.0,79448.0,7.7e-07]
[1743974354844,0.005,79449.0,79448.0,7.7e-07]
[1743974355000,0.20164,79449.0,79448.0,7.7e-07]
[1743974355201,0.19664,79449.0,79448.0,7.7e-07]
[1743974355610,0.20164,79449.0,79448.0,7.7e-07]
[1743974355897,0.005,79449.0,79448.0,0.12290374]
[1743974356114,0.00013789,79450.0,79448.0,0.17040374]
[1743974356315,0.00013789,79450.0,79449.0,0.12290297]
[1743974357478,0.012585,79456.0,79448.0,7.7e-07]
[1743974357479,0.16445089,79451.0,79448.0,7.7e-07]
[1743974357685,0.251733,79449.0,79448.0,0.00046111]
[1743974357879,0.002,79449.0,79448.0,0.00046111]
[1743974358350,0.264309,79453.0,79448.0,0.00046111]
[1743974358530,0.264312,79452.0,79448.0,0.00046111]
[1743974358758,0.002,79451.0,79448.0,0.00046111]
[1743974359092,0.264302,79455.0,79448.0,0.00046111]
[1743974359514,0.002,79453.0,79448.0,0.00046111]
[1743974359865,0.014586,79453.0,79448.0,0.00046111]
[1743974361271,0.251724,79452.0,79448.0,0.00046111]
[1743974361631,0.264315,79451.0,79448.0,0.00046111]
[1743974361872,0.264319,79449.0,79448.0,0.00046111]
[1743974362086,0.3450715,79449.0,79448.0,0.00046111]
[1743974362288,0.66445447,79449.0,79448.0,0.00046111]
[1743974362497,0.66445447,79449.0,79448.0,1.1e-07]
[1743974362903,0.26437,79434.0,79430.0,0.0003346]
[1743974363123,0.38727297,79434.0,79433.0,0.00047249]
[1743974363330,0.012589,79430.0,79429.0,9e-08]
[1743974363534,0.33193197,79430.0,79429.0,9e-08]
[1743974364948,0.67193197,79430.0,79429.0,9e-08]
[1743974365276,0.67693197,79430.0,79429.0,9e-08]
[1743974365833,0.67193197,79430.0,79429.0,9e-08]
[1743974366045,0.84952965,79430.0,79429.0,9e-08]
[1743974366228,0.85452965,79430.0,79429.0,9e-08]
[1743974366671,0.85452965,79430.0,79419.0,8.9e-07]
[1743974366672,0.754416,79420.0,79419.0,8.9e-07]
[1743974366877,0.012591,79417.0,79416.0,6.9e-07]
[1743974367080,0.72732897,79417.0,79416.0,6.9e-07]
[1743974367304,0.85022665,79417.0,79416.0,6.9e-07]
[1743974367521,0.72732897,79417.0,79416.0,6.9e-07]
[1743974368053,0.264489,79398.0,79397.0,9e-08]
[1743974368468,0.460889,79398.0,79397.0,9e-08]
[1743974368902,0.26448,79401.0,79397.0,9e-08]
[1743974369105,0.012594,79400.0,79397.0,9e-08]
[1743974369311,0.00013667,79401.0,79398.0,0.01454085]
[1743974369950,0.00013667,79401.0,79400.0,0.83402682]
[1743974370540,0.00013667,79401.0,79400.0,0.82902682]
[1743974371831,0.00113667,79401.0,79400.0,0.82902682]
[1743974372469,0.00013667,79401.0,79400.0,0.82902682]
[1743974372807,0.00113667,79401.0,79400.0,0.82902682]
[1743974373301,0.00113667,79401.0,79400.0,0.83860541]
[1743974374220,0.00013667,79401.0,79400.0,0.83860541]
[1743974377409,0.00013667,79401.0,79400.0,0.55500297]
[1743974377831,0.00013667,79401.0,79400.0,0.56954382]
[1743974378033,0.00013667,79401.0,79400.0,0.55500297]
[1743974378455,0.00013667,79401.0,79400.0,0.56954382]
[1743974378668,0.00013667,79401.0,79400.0,0.58213782]
[1743974381273,0.01013667,79402.0,79401.0,0.61901985]
[1743974381480,0.01013667,79402.0,79401.0,0.74238225]
[1743974381991,0.251832,79418.0,79407.0,0.35454085]
[1743974382217,0.251832,79418.0,79408.0,0.12290297]
[1743974382841,0.264423,79418.0,79409.0,0.01454085]
[1743974383041,0.264423,79418.0,79411.0,0.01454085]
[1743974383267,0.264423,79418.0,79413.0,0.01454085]
[1743974383471,0.264423,79418.0,79415.0,0.01454085]
[1743974383693,0.264429,79417.0,79415.0,0.13744382]
[1743974384670,0.012591,79416.0,79415.0,0.13744382]
[1743974384830,0.264429,79417.0,79415.0,0.13744382]
[1743974385212,0.251838,79416.0,79415.0,0.13744382]
[1743974385394,0.016591,79417.0,79415.0,0.13744382]
[1743974385605,0.251838,79416.0,79415.0,0.13744382]
[1743974386599,0.012591,79419.0,79415.0,0.13744382]
[1743974386810,0.251832,79418.0,79415.0,0.13744382]
[1743974386945,0.268429,79417.0,79415.0,0.13744382]
[1743974387310,0.264429,79417.0,79415.0,0.13744382]
[1743974387511,0.012591,79416.0,79415.0,0.13744382]
[1743974387724,0.012589,79429.0,79415.0,0.13744382]
[1743974387928,0.251729,79451.0,79432.0,0.36712985]
[1743974388128,0.251735,79449.0,79432.0,0.49003282]
[1743974388326,0.012588,79440.0,79432.0,0.47744382]
[1743974388526,0.264359,79438.0,79432.0,0.47744382]
[1743974388742,0.012588,79438.0,79432.0,0.47744382]
[1743974388967,0.264347,79441.0,79432.0,0.47744382]
[1743974389084,0.251764,79440.0,79432.0,0.47744382]
[1743974389280,0.00030438,79433.0,79432.0,0.47744382]
[1743974389504,0.00030438,79433.0,79432.0,0.13744382]
[1743974390146,0.26467738,79433.0,79432.0,0.13744382]
[1743974391323,0.251816,79423.0,79418.0,0.01454085]
[1743974391494,0.264419,79420.0,79419.0,0.13744382]
[1743974391697,0.012591,79418.0,79416.0,0.0493]
[1743974391902,0.012591,79417.0,79410.0,0.4132]
[1743974392076,0.012591,79417.0,79411.0,0.46290297]
[1743974392279,0.012591,79417.0,79412.0,0.01454085]
[1743974392474,0.012591,79417.0,79410.0,0.4132]
[1743974392475,0.012591,79417.0,79414.0,0.35454085]
[1743974392692,0.012591,79417.0,79416.0,0.01454085]
[1743974392893,0.012591,79417.0,79416.0,0.13744382]
[1743974393098,0.264423,79418.0,79416.0,0.13744382]
[1743974393334,0.2518,79429.0,79418.0,0.01454085]
[1743974393528,0.264389,79429.0,79420.0,0.01454085]
[1743974393749,0.251836,79417.0,79403.0,0.301176]
[1743974393893,0.012591,79419.0,79412.0,0.01454085]
[1743974394090,0.251841,79415.0,79414.0,0.01454085]
[1743974394418,0.264446,79411.0,79399.0,0.34]
[1743974394774,0.264446,79411.0,79401.0,0.00015797]
[1743974397099,0.447752,79418.0,79404.0,0.264467]
[1743974397299,0.251812,79425.0,79411.0,0.13744382]
[1743974397546,0.251818,79423.0,79412.0,0.01454085]
[1743974397749,0.251818,79423.0,79414.0,0.01454085]
[1743974397899,0.264408,79423.0,79416.0,0.01454085]
[1743974398104,0.264408,79423.0,79414.0,0.01454085]
[1743974398105,0.264408,79423.0,79418.0,0.01454085]
[1743974398301,0.264408,79423.0,79419.0,0.12290297]
[1743974398602,0.251822,79421.0,79419.0,0.12290297]
[1743974398868,0.06,79420.0,79419.0,0.13744382]
[1743974400066,0.06,79420.0,79419.0,0.38927182]
[1743974400225,0.06,79420.0,79419.0,0.78736282]
[1743974401150,0.06,79420.0,79419.0,0.82246631]
[1743974401681,0.062,79420.0,79419.0,0.82246631]
[1743974402049,0.06,79420.0,79419.0,0.82246631]
[1743974403048,0.06,79420.0,79419.0,0.81068786]
[1743974403254,0.06,79420.0,79419.0,0.8201531]
[1743974403657,0.06,79420.0,79419.0,0.79682806]
[1743974403857,0.06,79420.0,79419.0,0.79782806]
[1743974404237,0.06,79420.0,79419.0,0.79682806]
[1743974404776,0.06,79420.0,79419.0,0.53240906]
[1743974406554,0.06,79420.0,79419.0,0.54500006]
[1743974407848,0.06,79420.0,79419.0,0.56831967]
[1743974409787,0.05980953,79420.0,79419.0,0.56831967]
[1743974409988,0.05980953,79420.0,79419.0,0.56867227]
[1743974410164,0.05980953,79420.0,79419.0,0.98687227]
[1743974410891,0.05980953,79420.0,79419.0,0.99863701]
[1743974411623,0.05980953,79420.0,79419.0,0.99963701]
[1743974411830,0.00980953,79420.0,79419.0,0.99963701]
[1743974412369,0.00030438,79433.0,79432.0,0.604376]
[1743974412567,0.00030438,79433.0,79432.0,0.72727897]
[1743974412775,0.00030438,79433.0,79432.0,0.47744382]
[1743974415117,0.00130438,79433.0,79432.0,0.47744382]
[1743974415481,0.00030438,79433.0,79432.0,0.47744382]
[1743974415890,0.00330438,79433.0,79432.0,0.74181982]
[1743974416101,0.00330438,79433.0,79432.0,0.79081982]
[1743974417319,0.00030438,79433.0,79432.0,0.79081982]
[1743974417874,0.00130438,79433.0,79432.0,0.8140797]
[1743974418177,0.00030438,79433.0,79432.0,0.82583752]
[1743974418554,0.00030438,79433.0,79432.0,0.82783752]
[1743974419368,0.00030438,79433.0,79432.0,0.80257764]
[1743974420293,0.00030438,79433.0,79432.0,0.8258322]
[1743974420787,0.00030438,79433.0,79432.0,0.8278322]
[1743974421722,0.251599,79492.0,79464.0,0.60427]
[1743974421922,0.25161,79488.0,79464.0,1.15491382]
[1743974422237,0.00030435,79465.0,79464.0,1.15991382]
[1743974422439,0.0001674,79494.0,79468.0,0.609256]
[1743974422631,0.0001674,79494.0,79468.0,0.74669982]
[1743974423470,0.0001674,79494.0,79468.0,0.75948187]
[1743974424374,0.0001674,79494.0,79480.0,0.604216]
[1743974424580,0.0001674,79494.0,79480.0,0.74165982]
[1743974425119,0.0001674,79494.0,79480.0,0.79325982]
[1743974425500,0.0001674,79494.0,79480.0,0.83965982]
[1743974425684,0.0001674,79494.0,79480.0,0.93568665]
[1743974425888,0.0001674,79494.0,79480.0,1.34888665]
[1743974426107,4e-07,79483.0,79482.0,0.77165382]
[1743974426265,4e-07,79483.0,79482.0,0.84457168]
[1743974426467,0.0001674,79494.0,79493.0,0.609173]
[1743974426681,0.0001674,79494.0,79493.0,1.23273363]
[1743974426682,0.00030318,79494.0,79493.0,1.23273363]
[1743974427155,0.00030318,79494.0,79493.0,1.2558426]
[1743974427775,0.002,79529.0,79509.0,0.005]
[1743974427982,0.002,79529.0,79509.0,1.14718682]
[1743974428185,0.002,79529.0,79509.0,1.15675477]
[1743974428465,0.002,79529.0,79509.0,1.15976382]
[1743974429443,0.002,79529.0,79509.0,1.16076382]
[1743974429983,0.002,79529.0,79509.0,1.15976382]
[1743974430194,0.002,79529.0,79509.0,1.15476382]
[1743974430391,0.002,79529.0,79509.0,1.15576382]
[1743974430539,0.002,79529.0,79509.0,1.1652721]
[1743974430746,6.462e-05,79510.0,79509.0,1.1652721]
[1743974431762,6.462e-05,79510.0,79509.0,1.1642721]
[1743974433690,6.462e-05,79510.0,79509.0,0.9127291]
[1743974433892,6.462e-05,79510.0,79509.0,0.54561125]
[1743974434099,6.462e-05,79510.0,79509.0,0.55818825]
[1743974434296,0.251498,79524.0,79512.0,0.26411]
[1743974434496,0.012574,79523.0,79517.0,0.12290297]
[1743974434767,0.264072,79524.0,79517.0,0.12290297]
[1743974434927,0.01088927,79522.0,79517.0,0.12290297]
[1743974435130,0.264072,79524.0,79517.0,0.12290297]
[1743974435366,0.01088927,79521.0,79517.0,0.12290297]
[1743974435539,0.012574,79525.0,79517.0,0.12290297]
[1743974435740,0.01088927,79520.0,79517.0,0.12290297]
[1743974435943,0.251499,79523.0,79518.0,0.01454085]
[1743974436148,0.01088927,79519.0,79513.0,0.35454085]
[1743974436472,0.01088927,79518.0,79516.0,0.01454085]
[1743974436707,0.01088927,79518.0,79517.0,0.47744382]
[1743974436910,0.264066,79526.0,79518.0,0.01454085]
[1743974437065,0.003,79520.0,79519.0,0.13744382]
[1743974437488,0.264066,79526.0,79519.0,0.13744382]
[1743974437741,0.0004528,79529.0,79521.0,0.01454085]
[1743974437900,0.01088927,79525.0,79523.0,0.01454085]
[1743974438058,0.0004528,79529.0,79528.0,0.02711485]
[1743974438429,0.01130405,79529.0,79528.0,0.15001782]
[1743974438582,0.0004528,79529.0,79528.0,0.15001782]
[1743974439092,0.0004528,79529.0,79528.0,0.15253236]
[1743974439644,0.0044528,79529.0,79528.0,0.15253236]
[1743974440013,0.0004528,79529.0,79528.0,0.15253236]
[1743974440213,0.0004528,79529.0,79528.0,0.49253236]
[1743974440443,0.0044528,79529.0,79528.0,0.49001782]
[1743974440825,0.0044528,79529.0,79528.0,0.90821782]
[1743974441019,0.0001675,79549.0,79548.0,0.603991]
[1743974441227,0.2625715,79549.0,79548.0,0.47744382]
[1743974441430,0.2751415,79549.0,79548.0,0.47744382]
[1743974441653,0.2625715,79549.0,79548.0,0.47744382]
[1743974441856,0.2751415,79549.0,79548.0,0.13744382]
[1743974442059,0.0111545,79549.0,79548.0,0.13744382]
[1743974443474,0.2625715,79549.0,79548.0,0.13744382]
[1743974443744,0.2751415,79549.0,79548.0,0.13744382]
[1743974444036,0.0151545,79549.0,79548.0,0.13744382]
[1743974444469,0.98176114,79550.0,79549.0,0.01454085]
[1743974444670,0.98176114,79550.0,79549.0,0.13744382]
[1743974447498,0.98476114,79550.0,79549.0,0.79073082]
[1743974447633,0.98476114,79550.0,79549.0,0.79573082]
[1743974448483,0.98476114,79550.0,79549.0,0.79073082]
[1743974449743,0.98176114,79550.0,79549.0,0.79073082]
[1743974450829,0.98176114,79550.0,79549.0,0.79273082]
[1743974451690,0.98176114,79550.0,79549.0,0.74343082]
[1743974452124,0.9912483,79550.0,79549.0,0.74343082]
[1743974452333,0.9912483,79550.0,79549.0,0.74143082]
[1743974452773,0.9912483,79550.0,79549.0,0.74343082]
[1743974452975,0.9912483,79550.0,79549.0,0.74843082]
[1743974453179,0.0001675,79553.0,79552.0,0.64851785]
[1743974453381,0.0001675,79553.0,79552.0,1.85838082]
[1743974454100,0.0001675,79553.0,79552.0,1.88148773]
[1743974454523,0.0001675,79553.0,79552.0,1.57296988]
[1743974454860,0.0001675,79553.0,79552.0,1.60008073]
[1743974455168,0.0001675,79553.0,79552.0,1.57697382]
[1743974455387,0.012567,79570.0,79560.0,0.34]
[1743974455630,0.012567,79568.0,79562.0,0.34]
[1743974455861,0.263926,79568.0,79563.0,0.12290297]
[1743974456087,0.00814369,79567.0,79563.0,0.12290297]
[1743974456283,0.25950569,79567.0,79563.0,0.12290297]
[1743974456619,0.00814369,79567.0,79563.0,0.12290297]
[1743974456813,0.251369,79565.0,79563.0,0.12290297]
[1743974457039,0.00814369,79564.0,79563.0,0.12290297]
[1743974457664,0.012568,79564.0,79563.0,0.12290297]
[1743974458038,0.02071169,79564.0,79563.0,0.12290297]
[1743974458604,0.00814369,79564.0,79563.0,0.13744382]
[1743974459568,0.012568,79566.0,79563.0,0.13744382]
[1743974459770,0.002,79564.0,79563.0,0.13744382]
[1743974460216,0.012568,79566.0,79563.0,0.13744382]
[1743974460419,0.012568,79564.0,79563.0,0.12290297]
[1743974460593,0.02271169,79564.0,79542.0,0.296636]
[1743974460794,0.263981,79551.0,79550.0,0.02314711]
[1743974461078,0.27212469,79551.0,79550.0,0.02314711]
[1743974461320,0.01257,79550.0,79549.0,0.0112]
[1743974461724,0.00809775,79550.0,79549.0,0.14348073]
[1743974461926,0.00809775,79550.0,79549.0,0.15802158]
[1743974462145,0.251404,79554.0,79550.0,0.01454085]
[1743974462351,0.251404,79554.0,79551.0,0.12290297]
[1743974462877,0.251407,79552.0,79551.0,0.12290297]
[1743974463087,0.263984,79550.0,79549.0,0.0112]
[1743974463315,0.251413,79551.0,79549.0,0.13410297]
[1743974463500,0.01257,79550.0,79549.0,0.0112]
[1743974464860,0.19412,79554.0,79549.0,0.0112]
[1743974465066,0.012568,79561.0,79553.0,0.01454085]
[1743974465266,0.012568,79561.0,79554.0,0.12290297]
[1743974465762,0.19412,79571.0,79560.0,0.012569]
[1743974465976,0.445469,79571.0,79561.0,0.13744382]
[1743974466138,0.00013565,79573.0,79571.0,0.01454085]
[1743974466323,0.14425565,79578.0,79572.0,0.12290297]
[1743974466730,0.14425565,79578.0,79572.0,0.13546997]
[1743974466933,0.14425565,79578.0,79574.0,0.012566]
[1743974467153,0.14425565,79578.0,79575.0,0.12290297]
[1743974468268,0.0001672,79582.0,79575.0,0.12290297]
[1743974468269,0.0001672,79582.0,79578.0,0.251325]
[1743974468400,0.0001672,79582.0,79578.0,0.38679397]
[1743974469173,0.0001672,79582.0,79578.0,0.12290297]
[1743974469585,0.0001672,79582.0,79578.0,0.13546897]
[1743974469911,0.011,79579.0,79578.0,0.13546897]
[1743974470254,0.011,79579.0,79578.0,0.14475911]
[1743974470667,0.011,79579.0,79578.0,0.13219311]
[1743974471071,0.01887249,79579.0,79578.0,0.13219311]
[1743974471323,0.01887249,79579.0,79578.0,0.14673396]
[1743974471709,0.011,79579.0,79578.0,0.14673396]
[1743974471909,0.011,79579.0,79578.0,0.50181298]
[1743974472110,0.011,79579.0,79578.0,0.48673396]
[1743974472310,0.009,79579.0,79578.0,0.52244769]
[1743974472509,0.011,79579.0,79578.0,0.50988169]
[1743974472695,0.011,79579.0,79578.0,0.76120669]
[1743974472892,0.011,79579.0,79578.0,0.77377269]
[1743974473099,0.009,79579.0,79578.0,0.83661614]
[1743974473311,0.99124343,79580.0,79579.0,0.37210685]
[1743974473504,0.99124343,79580.0,79579.0,0.68892982]
[1743974473704,0.99911592,79580.0,79579.0,0.68892982]
[1743974473904,0.99911592,79580.0,79579.0,0.71207755]
[1743974474452,0.99911592,79580.0,79579.0,0.723821]
[1743974474662,1e-08,79582.0,79581.0,0.37210585]
[1743974474868,1e-08,79582.0,79581.0,0.98110882]
[1743974475083,0.002,79589.0,79588.0,0.69399885]
[1743974475284,0.002,79589.0,79588.0,0.82949522]
[1743974475424,0.002,79589.0,79588.0,0.91415548]
[1743974475826,0.0002473,79609.0,79608.0,0.66393285]
[1743974476025,0.2354023,79610.0,79609.0,0.44660185]
[1743974476251,0.0001672,79633.0,79618.0,0.603758]
[1743974476465,0.00213559,79619.0,79618.0,0.77120182]
[1743974476618,0.00213559,79619.0,79618.0,0.851693]
[1743974476830,0.00213559,79619.0,79618.0,0.93398847]
[1743974476831,5.9e-07,79619.0,79618.0,0.93398847]
[1743974477060,5.9e-07,79619.0,79618.0,1.46807166]
[1743974477459,0.97983826,79630.0,79629.0,0.37]
[1743974477702,0.97983826,79630.0,79629.0,0.52000182]
[1743974477865,0.97983826,79630.0,79629.0,0.51500182]
[1743974478066,0.97983826,79630.0,79629.0,0.51314955]
[1743974478442,0.97983826,79630.0,79629.0,0.49000182]
[1743974478641,0.97983826,79630.0,79629.0,0.51500182]
[1743974478769,0.97983826,79630.0,79629.0,0.49000182]
[1743974478970,0.97983826,79630.0,79629.0,0.49100182]
[1743974479621,0.97983826,79630.0,79629.0,0.50254192]
[1743974479853,0.97983826,79630.0,79629.0,0.50654192]
[1743974480031,0.34819601,79630.0,79629.0,0.58414192]
[1743974480288,0.35497229,79630.0,79629.0,0.58414192]
[1743974480639,0.35497229,79630.0,79629.0,0.55414192]
[1743974481208,0.35497229,79630.0,79629.0,0.57914192]
[1743974481537,0.35497229,79630.0,79629.0,0.58414192]
[1743974481725,0.35497229,79630.0,79629.0,0.58014192]
[1743974482145,0.35497229,79630.0,79629.0,0.58614192]
[1743974482308,0.35497229,79630.0,79629.0,0.58114192]
[1743974482509,0.35497229,79630.0,79629.0,0.55014192]
[1743974483065,0.35497229,79630.0,79629.0,0.58014192]
[1743974483308,0.35497229,79630.0,79629.0,0.55514192]
[1743974483461,0.35497229,79630.0,79629.0,0.57514192]
[1743974483989,0.35497229,79630.0,79629.0,0.57914192]
[1743974484192,0.33097229,79630.0,79629.0,0.99234192]
[1743974484367,0.2936482,79630.0,79629.0,0.99734192]
[1743974484582,0.28687192,79630.0,79629.0,0.99734192]
[1743974485047,0.28687192,79630.0,79629.0,0.97234192]
[1743974485246,0.28687192,79630.0,79629.0,0.99334192]
[1743974485472,0.28687192,79630.0,79629.0,0.99634192]
[1743974486166,0.28687192,79630.0,79629.0,0.99334192]
[1743974486369,0.28687192,79630.0,79629.0,0.99734192]
[1743974487375,0.2700498,79630.0,79629.0,1.04314192]
[1743974487664,0.0001672,79633.0,79632.0,0.64825285]
[1743974488009,0.0001672,79633.0,79632.0,0.77115582]
[1743974488148,0.0001672,79633.0,79632.0,0.94795955]
[1743974488547,0.0001672,79644.0,79643.0,0.64821685]
[1743974488789,0.0001672,79644.0,79643.0,0.77111982]
[1743974488994,0.0001672,79644.0,79643.0,0.94792355]
[1743974489191,2e-07,79644.0,79643.0,0.99512355]
[1743974489446,2e-07,79644.0,79643.0,1.40832355]
[1743974489652,0.0001672,79660.0,79659.0,0.017553]
[1743974489850,0.0001672,79660.0,79659.0,0.40857683]
[1743974490071,0.0001672,79660.0,79659.0,0.40606682]
[1743974490274,0.0001672,79660.0,79659.0,0.58287055]
[1743974490476,0.0001672,79660.0,79659.0,0.59243516]
[1743974490884,0.250918,79708.0,79673.0,0.608577]
[1743974491183,0.012546,79703.0,79690.0,0.01454085]
[1743974491433,0.26348,79703.0,79691.0,0.12290297]
[1743974491673,0.012548,79692.0,79672.0,0.02709185]
[1743974491919,0.19846909,79702.0,79688.0,0.12290297]
[1743974491920,0.012547,79697.0,79688.0,0.12290297]
[1743974492161,0.2635,79696.0,79688.0,0.12290297]
[1743974492362,0.263506,79695.0,79688.0,0.12290297]
[1743974492505,0.263506,79695.0,79688.0,0.12335532]
[1743974493129,0.243509,79694.0,79688.0,0.12335532]
[1743974493346,0.263523,79689.0,79688.0,0.12335532]
[1743974493708,0.26352,79691.0,79688.0,0.12335532]
[1743974493852,0.250963,79693.0,79688.0,0.12335532]
[1743974494239,0.012547,79699.0,79688.0,0.12335532]
[1743974494446,0.012548,79693.0,79688.0,0.12335532]
[1743974494647,0.263509,79694.0,79688.0,0.12335532]
[1743974495074,0.250959,79695.0,79688.0,0.12335532]
[1743974495276,0.263501,79696.0,79688.0,0.12335532]
[1743974495480,0.263507,79694.0,79688.0,0.12335532]
[1743974495878,0.26351,79694.0,79688.0,0.12335532]
[1743974496170,0.19324,79697.0,79688.0,0.12335532]
[1743974496574,0.456688,79700.0,79688.0,0.12335532]
[1743974497125,0.1932,79700.0,79688.0,0.12335532]
[1743974497264,0.35669,79700.0,79688.0,0.12335532]
[1743974497710,0.012548,79691.0,79688.0,0.12335532]
[1743974497914,0.250966,79692.0,79688.0,0.12335532]
[1743974498112,0.002,79697.0,79692.0,0.012548]
[1743974498289,0.002,79697.0,79693.0,0.12290297]
[1743974498489,0.012546,79704.0,79693.0,0.12290297]
[1743974498691,0.250937,79701.0,79693.0,0.12290297]
[1743974498902,0.002,79700.0,79693.0,0.12290297]
[1743974500162,0.263503,79695.0,79688.0,0.00045235]
[1743974500365,0.263523,79689.0,79688.0,0.00045235]
[1743974500575,0.263523,79689.0,79646.0,0.012555]
[1743974500576,0.263589,79669.0,79646.0,0.012555]
[1743974500766,0.456669,79669.0,79640.0,0.31300146]
[1743974500982,0.456669,79669.0,79668.0,0.17878125]
[1743974501131,0.546269,79669.0,79668.0,0.17878125]
[1743974501682,0.501769,79669.0,79668.0,0.17878125]
[1743974504109,0.504769,79669.0,79668.0,0.17878125]
[1743974504266,0.507769,79669.0,79668.0,0.17878125]
[1743974504629,0.512769,79669.0,79668.0,0.17878125]
[1743974504786,0.501769,79669.0,79668.0,0.17878125]
[1743974505213,0.504689,79669.0,79668.0,0.17878125]
[1743974505414,0.63259197,79669.0,79668.0,2.5e-07]
[1743974505748,0.62959197,79669.0,79668.0,2.5e-07]
[1743974506031,0.63259197,79669.0,79668.0,2.5e-07]
[1743974506837,0.62692671,79669.0,79668.0,2.5e-07]
[1743974507218,0.50898374,79669.0,79668.0,2.5e-07]
[1743974507721,0.51398374,79669.0,79668.0,2.5e-07]
[1743974507931,0.51098374,79669.0,79668.0,2.5e-07]
[1743974508169,0.50098374,79669.0,79668.0,2.5e-07]
[1743974508414,0.50598374,79669.0,79668.0,2.5e-07]
[1743974508792,0.50094374,79669.0,79668.0,2.5e-07]
[1743974509669,0.62384671,79669.0,79668.0,2.5e-07]
[1743974510143,0.62884671,79669.0,79668.0,2.5e-07]
[1743974510457,0.62384671,79669.0,79668.0,2.5e-07]
[1743974510690,0.62884671,79669.0,79668.0,2.5e-07]
[1743974510898,0.62884671,79669.0,79636.0,0.01315166]
[1743974510899,0.251133,79639.0,79636.0,0.01315166]
[1743974511008,0.251133,79639.0,79636.0,0.0007889]
[1743974511009,0.263695,79637.0,79636.0,0.0007889]
[1743974511220,0.263695,79637.0,79636.0,0.12369187]
[1743974511420,0.263695,79637.0,79636.0,0.0007889]
[1743974513917,0.004,79637.0,79636.0,0.0007889]
[1743974514399,0.002,79637.0,79636.0,0.0007889]
[1743974514618,0.007,79637.0,79636.0,0.0007889]
[1743974514842,0.002,79637.0,79636.0,0.0007889]
[1743974515067,0.012556,79639.0,79636.0,0.0007889]
[1743974515303,0.004,79637.0,79636.0,0.0007889]
[1743974515697,0.263686,79641.0,79636.0,0.0007889]
[1743974515698,0.251133,79639.0,79636.0,0.0007889]
[1743974516062,0.004,79637.0,79636.0,0.0007889]
[1743974516257,0.008,79637.0,79636.0,0.0007889]
[1743974516670,0.004,79637.0,79636.0,0.0007889]
[1743974517279,0.263688,79640.0,79636.0,0.0007889]
[1743974517524,0.001,79637.0,79636.0,0.0007889]
[1743974518085,0.001,79637.0,79636.0,0.12369187]
[1743974518385,0.012556,79640.0,79636.0,0.12369187]
[1743974518613,0.263692,79638.0,79637.0,0.12290297]
[1743974519252,0.012556,79638.0,79637.0,0.12290297]
[1743974519451,0.263687,79640.0,79637.0,0.12290297]